bitfinex/quotes_BTCUSD_20241001
["timestamp","ask_amount","ask_price","bid_price","bid_amount"]
[1727799827636,0.02961796,62580.0,62579.0,0.16162]
[1727799827874,0.03431615,62580.0,62579.0,0.3443853]
[1727799828088,0.04592733,62580.0,62579.0,0.16162]
[1727799828525,0.03792733,62580.0,62579.0,0.16162]
[1727799828748,0.03092733,62580.0,62579.0,0.000822]
[1727799829667,0.19072233,62580.0,62579.0,0.000822]
[1727799829893,0.03092733,62580.0,62579.0,0.000822]
[1727799830337,0.03092733,62580.0,62579.0,0.16062]
[1727799831592,0.02992733,62580.0,62579.0,0.3463853]
[1727799831802,0.02992733,62580.0,62579.0,0.5038431]
[1727799832029,0.01831615,62580.0,62579.0,0.5038431]
[1727799832289,0.01831615,62580.0,62579.0,0.5028431]
[1727799832509,0.001646,62580.0,62579.0,0.4998431]
[1727799832719,0.001646,62580.0,62579.0,0.5058431]
[1727799832973,0.001646,62580.0,62579.0,0.5018431]
[1727799833218,0.001646,62580.0,62579.0,0.4998431]
[1727799833442,0.002646,62580.0,62579.0,0.5058431]
[1727799834335,0.003646,62580.0,62579.0,0.5138431]
[1727799835550,0.02044448,62580.0,62579.0,0.014822]
[1727799835785,0.18023948,62580.0,62579.0,0.014822]
[1727799836003,0.19190995,62580.0,62579.0,0.014822]
[1727799836459,0.19090995,62580.0,62579.0,0.008822]
[1727799836691,0.19590995,62580.0,62579.0,0.008822]
[1727799837170,0.17911147,62580.0,62579.0,0.008822]
[1727799837443,0.22675193,62580.0,62579.0,0.008822]
[1727799837685,0.24366286,62580.0,62579.0,0.008822]
[1727799837903,0.1960224,62580.0,62579.0,0.008822]
[1727799838149,0.1900224,62580.0,62579.0,0.000822]
[1727799838365,0.3544802,62580.0,62579.0,0.000822]
[1727799838576,0.3504802,62580.0,62579.0,0.000822]
[1727799838846,0.3464802,62580.0,62579.0,0.000822]
[1727799839065,0.37452744,62580.0,62579.0,0.000822]
[1727799839289,0.37852744,62580.0,62579.0,0.000822]
[1727799839532,0.53497422,62580.0,62579.0,0.000822]
[1727799840056,0.3534802,62580.0,62579.0,0.000822]
[1727799840521,0.353407,62580.0,62579.0,0.000822]
[1727799842597,0.33656927,62580.0,62579.0,0.000822]
[1727799842835,0.53220122,62580.0,62579.0,0.000822]
[1727799843071,0.65629206,62580.0,62579.0,0.000822]
[1727799843299,0.688648,62580.0,62579.0,0.000822]
[1727799843520,0.693648,62580.0,62579.0,0.000822]
[1727799843753,0.53220122,62580.0,62579.0,0.000822]
[1727799843976,0.65121734,62580.0,62579.0,0.000822]
[1727799844215,0.60061136,62580.0,62579.0,0.000822]
[1727799844432,0.31674627,62580.0,62579.0,0.000822]
[1727799844658,0.28314342,62580.0,62579.0,0.000822]
[1727799844874,0.04014842,62580.0,62579.0,0.000822]
[1727799845393,0.03914842,62580.0,62579.0,0.16062]
[1727799845637,0.03747795,62580.0,62579.0,0.23582]
[1727799845900,0.03747795,62580.0,62579.0,0.3922778]
[1727799845901,0.020646,62580.0,62579.0,0.3922778]
[1727799846146,0.001646,62580.0,62579.0,0.40491147]
[1727799846483,0.001646,62580.0,62579.0,0.50491147]
[1727799847070,0.001646,62580.0,62579.0,0.50691147]
[1727799847514,0.008646,62580.0,62579.0,0.50691147]
[1727799847964,0.005646,62580.0,62579.0,0.78087001]
[1727799848200,0.002646,62580.0,62579.0,0.78587001]
[1727799848442,0.003646,62580.0,62579.0,0.78687001]
[1727799849155,0.003646,62580.0,62579.0,0.78887001]
[1727799850115,0.003646,62580.0,62579.0,0.78687001]
[1727799851050,0.001646,62580.0,62579.0,0.77887001]
[1727799851274,0.002646,62580.0,62579.0,0.78187001]
[1727799851524,0.003646,62580.0,62579.0,0.4250778]
[1727799851784,0.002646,62580.0,62579.0,0.16362]
[1727799852006,0.002646,62580.0,62579.0,0.16062]
[1727799852007,0.001646,62580.0,62579.0,0.16062]
[1727799852262,0.001646,62580.0,62579.0,0.16862]
[1727799852263,0.02038475,62580.0,62579.0,0.16862]
[1727799852501,0.01938475,62580.0,62579.0,0.003822]
[1727799852750,0.18017975,62580.0,62579.0,0.008822]
[1727799853024,0.19182514,62580.0,62579.0,0.008822]
[1727799853279,0.24212952,62580.0,62579.0,0.008822]
[1727799853999,0.5870395,62580.0,62579.0,0.008822]
[1727799854268,0.46997679,62580.0,62579.0,0.005822]
[1727799854507,0.51762521,62580.0,62579.0,0.005822]
[1727799855003,0.45443131,62580.0,62579.0,0.005822]
[1727799855237,0.62187809,62580.0,62579.0,0.000822]
[1727799855491,0.60513934,62580.0,62579.0,0.000822]
[1727799855727,0.72100375,62580.0,62579.0,0.000822]
[1727799855971,0.70300375,62580.0,62579.0,0.000822]
[1727799856220,0.54155697,62580.0,62579.0,0.000822]
[1727799856462,0.51778511,62580.0,62579.0,0.000822]
[1727799856733,0.50800402,62580.0,62579.0,0.000822]
[1727799856973,0.46042257,62580.0,62579.0,0.000822]
[1727799857211,0.53177887,62580.0,62579.0,0.000822]
[1727799857450,0.70222565,62580.0,62579.0,0.000822]
[1727799857697,0.54577887,62580.0,62579.0,0.000822]
[1727799857928,0.47442257,62580.0,62579.0,0.000822]
[1727799858163,0.50799856,62580.0,62579.0,0.000822]
[1727799858397,0.52199856,62580.0,62579.0,0.000822]
[1727799858665,0.50799856,62580.0,62579.0,0.000822]
[1727799858908,0.49399685,62580.0,62579.0,0.000822]
[1727799859142,0.50799685,62580.0,62579.0,0.000822]
[1727799859395,0.46042086,62580.0,62579.0,0.000822]
[1727799859626,0.44642086,62580.0,62579.0,0.000822]
[1727799859856,0.52199685,62580.0,62579.0,0.000822]
[1727799860086,0.46042086,62580.0,62579.0,0.000822]
[1727799861726,0.47442086,62580.0,62579.0,0.000822]
[1727799862210,0.36859256,62580.0,62579.0,0.000822]
[1727799862452,0.22889348,62580.0,62579.0,0.000822]
[1727799862695,0.05805011,62580.0,62579.0,0.000822]
[1727799862943,0.05805011,62580.0,62579.0,0.16062]
[1727799863421,0.04405011,62580.0,62579.0,0.16062]
[1727799863654,0.03705011,62580.0,62579.0,0.16062]
[1727799863893,0.02540472,62580.0,62579.0,0.16062]
[1727799864134,0.03694127,62580.0,62579.0,0.16062]
[1727799864604,0.008646,62580.0,62579.0,0.16062]
[1727799864839,0.008646,62580.0,62579.0,0.4170778]
[1727799865085,0.019646,62580.0,62579.0,0.4971778]
[1727799865323,0.001646,62580.0,62579.0,0.4961778]
[1727799865557,0.005646,62580.0,62579.0,0.4961778]
[1727799866052,0.001646,62580.0,62579.0,0.4961778]
[1727799866285,0.004646,62580.0,62579.0,0.4981778]
[1727799866509,0.002646,62580.0,62579.0,0.5011778]
[1727799866745,0.003646,62580.0,62579.0,0.5081778]
[1727799866976,0.002646,62580.0,62579.0,0.5372178]
[1727799867208,0.003646,62580.0,62579.0,0.5382178]
[1727799867675,0.003646,62580.0,62579.0,0.5432178]
[1727799867908,0.002646,62580.0,62579.0,0.5592178]
[1727799868448,0.003646,62580.0,62579.0,0.5051778]
[1727799868679,0.002646,62580.0,62579.0,0.5271778]
[1727799868919,0.002646,62580.0,62579.0,0.9911478]
[1727799869153,0.002646,62580.0,62579.0,0.9981478]
[1727799869386,0.002646,62580.0,62579.0,1.0321878]
[1727799869623,0.002646,62580.0,62579.0,1.0351878]
[1727799869873,0.001646,62580.0,62579.0,1.0291878]
[1727799870114,0.002646,62580.0,62579.0,1.0321878]
[1727799870341,0.001646,62580.0,62579.0,1.0291878]
[1727799871313,0.002646,62580.0,62579.0,1.0351878]
[1727799871567,0.001646,62580.0,62579.0,1.0291878]
[1727799871833,0.003646,62580.0,62579.0,1.0381878]
[1727799872071,0.003646,62580.0,62579.0,0.8530148]
[1727799872331,0.002646,62580.0,62579.0,0.8500148]
[1727799872558,0.002646,62580.0,62579.0,0.8530148]
[1727799872559,0.003646,62580.0,62579.0,0.8530148]
[1727799873703,0.003646,62580.0,62579.0,1.03562315]
[1727799876309,0.001646,62582.0,62581.0,0.308832]
[1727799876539,0.001646,62582.0,62581.0,0.4882898]
[1727799876770,0.001646,62582.0,62581.0,2.0449988]
[1727799876998,0.001646,62582.0,62581.0,0.4882898]
[1727799877233,0.001646,62582.0,62581.0,2.9884268]
[1727799877460,0.001646,62582.0,62581.0,0.6870328]
[1727799878905,0.002646,62582.0,62581.0,0.6940328]
[1727799879605,0.003646,62582.0,62581.0,0.6980328]
[1727799879840,0.003646,62582.0,62581.0,0.71041791]
[1727799880303,0.003646,62582.0,62581.0,0.62507591]
[1727799883111,0.003646,62582.0,62581.0,0.62415891]
[1727799884062,0.003646,62582.0,62581.0,0.51167491]
[1727799884306,0.003646,62582.0,62581.0,0.48667491]
[1727799884552,0.003646,62582.0,62581.0,0.47167491]
[1727799884789,0.003646,62582.0,62581.0,0.47667491]
[1727799886406,0.003646,62582.0,62581.0,0.47167491]
[1727799887128,0.003646,62582.0,62581.0,0.47667491]
[1727799887901,0.001646,62584.0,62583.0,0.007]
[1727799888159,0.001646,62584.0,62583.0,3.73728115]
[1727799888407,0.001646,62584.0,62583.0,3.41980915]
[1727799889685,0.002646,62584.0,62583.0,3.42680915]
[1727799889897,0.003646,62584.0,62583.0,3.43080915]
[1727799890385,0.23875656,62596.0,62595.0,0.44236535]
[1727799890627,0.23875656,62596.0,62595.0,0.59882315]
[1727799890873,0.25063366,62596.0,62595.0,0.59882315]
[1727799891114,0.23875656,62596.0,62595.0,0.59882315]
[1727799891349,0.0118771,62596.0,62595.0,0.59882315]
[1727799891608,0.001644,62600.0,62599.0,0.159746]
[1727799891849,0.001644,62600.0,62599.0,0.49881215]
[1727799892103,0.001644,62600.0,62599.0,0.34235435]
[1727799892832,0.001644,62600.0,62599.0,0.34335435]
[1727799893064,0.001644,62600.0,62599.0,0.49981215]
[1727799893335,0.001644,62600.0,62599.0,0.59981215]
[1727799893579,0.23875656,62614.0,62613.0,0.159711]
[1727799893821,0.25533819,62614.0,62613.0,0.59877715]
[1727799894110,0.24873685,62614.0,62613.0,0.59877715]
[1727799894379,0.00998029,62614.0,62613.0,0.59877715]
[1727799894632,0.0784,62626.0,62616.0,0.159703]
[1727799894893,0.0784,62626.0,62616.0,0.4161608]
[1727799896542,0.002644,62617.0,62616.0,0.4261608]
[1727799897268,0.003644,62617.0,62616.0,0.4351608]
[1727799897542,0.003644,62617.0,62616.0,0.4371608]
[1727799897912,0.001644,62629.0,62628.0,0.47432035]
[1727799898032,0.001644,62629.0,62628.0,0.51432035]
[1727799898277,0.001644,62645.0,62637.0,0.47429835]
[1727799898525,0.001644,62645.0,62637.0,0.63075615]
[1727799898775,0.001644,62645.0,62639.0,0.259644]
[1727799899046,0.001644,62645.0,62639.0,0.4441018]
[1727799899318,0.001644,62645.0,62639.0,0.9955738]
[1727799900299,0.003646,62640.0,62639.0,1.04389729]
[1727799900583,0.002646,62640.0,62639.0,1.03089729]
[1727799901093,0.001646,62640.0,62639.0,0.49846529]
[1727799901325,0.001646,62640.0,62639.0,0.49346529]
[1727799901576,0.001646,62640.0,62639.0,0.46046529]
[1727799901788,0.001646,62640.0,62639.0,0.191684]
[1727799902016,0.001646,62640.0,62639.0,0.205684]
[1727799902250,0.001646,62640.0,62638.0,0.159646]
[1727799902518,0.001646,62640.0,62633.0,0.319315]
[1727799902789,0.001646,62640.0,62624.0,0.03204]
[1727799902790,0.23875656,62634.0,62624.0,0.03204]
[1727799903071,0.175846,62640.0,62625.0,0.319359]
[1727799903320,0.175846,62640.0,62616.0,0.319402]
[1727799903321,0.01638724,62633.0,62616.0,0.319402]
[1727799903548,0.15968,62626.0,62621.0,0.159688]
[1727799903791,0.00843512,62632.0,62617.0,0.1564578]
[1727799904110,0.159684,62624.0,62620.0,0.159692]
[1727799904308,0.0802,62624.0,62617.0,0.3194]
[1727799904539,0.00837666,62623.0,62620.0,0.159691]
[1727799904797,0.00837666,62623.0,62620.0,0.319385]
[1727799905037,0.00837666,62623.0,62622.0,0.159688]
[1727799905284,0.00837666,62623.0,62622.0,0.259688]
[1727799905530,0.00837666,62623.0,62622.0,0.1]
[1727799906021,0.00837666,62623.0,62620.0,0.007]
[1727799906022,0.15969,62621.0,62620.0,0.007]
[1727799906257,0.00937666,62623.0,62618.0,0.1]
[1727799906258,0.319378,62622.0,62618.0,0.1]
[1727799906499,0.00836178,62621.0,62618.0,0.1]
[1727799906997,0.159692,62621.0,62618.0,0.1]
[1727799907240,0.16805082,62620.0,62615.0,0.1]
[1727799907500,0.159703,62617.0,62611.0,0.479144]
[1727799907757,0.00835682,62620.0,62596.0,0.03204]
[1727799907758,0.28210965,62620.0,62596.0,0.03204]
[1727799908020,0.0764,62610.0,62603.0,0.319472]
[1727799908271,0.0764,62610.0,62605.0,0.319462]
[1727799908524,0.00804905,62609.0,62608.0,0.159723]
[1727799908767,0.00804905,62609.0,62605.0,0.319462]
[1727799908768,0.159729,62606.0,62602.0,0.159738]
[1727799908991,0.0764,62610.0,62604.0,0.159732]
[1727799908992,0.159725,62608.0,62604.0,0.159732]
[1727799909217,0.00795343,62605.0,62604.0,0.159732]
[1727799909457,0.159722,62609.0,62602.0,0.319476]
[1727799909698,0.159722,62609.0,62605.0,0.15973]
[1727799910477,0.23612,62610.0,62606.0,0.159728]
[1727799910965,0.319449,62608.0,62604.0,0.001642]
[1727799911213,0.004,62609.0,62604.0,0.001642]
[1727799911465,0.004,62609.0,62608.0,0.159723]
[1727799912208,0.004,62609.0,62608.0,0.4161808]
[1727799912448,0.0779,62627.0,62619.0,0.259695]
[1727799912678,0.0818,62634.0,62619.0,0.68990563]
[1727799912923,0.319322,62633.0,62619.0,0.68990563]
[1727799913158,0.0818,62634.0,62628.0,0.159672]
[1727799913385,0.0985,62635.0,62628.0,0.159672]
[1727799913386,0.159656,62635.0,62628.0,0.159672]
[1727799913634,0.159657,62635.0,62628.0,0.159672]
[1727799913883,0.319302,62637.0,62627.0,0.31935]
[1727799914112,0.319302,62637.0,62619.0,0.2564578]
[1727799914113,0.0165084,62635.0,62625.0,0.319356]
[1727799914375,0.001646,62640.0,62630.0,0.27375283]
[1727799914627,0.23875656,62637.0,62636.0,0.159652]
[1727799915097,0.001646,62640.0,62639.0,0.159644]
[1727799915331,0.001646,62640.0,62638.0,0.159645]
[1727799915826,0.23875656,62639.0,62634.0,0.1]
[1727799916095,0.159655,62635.0,62634.0,0.1]
[1727799916434,0.159655,62635.0,62631.0,0.159663]
[1727799916682,0.159655,62635.0,62629.0,0.319339]
[1727799916683,0.159653,62636.0,62629.0,0.319339]
[1727799916949,0.159667,62631.0,62627.0,0.1]
[1727799917183,0.159662,62633.0,62629.0,0.159669]
[1727799917422,0.31932,62633.0,62627.0,0.1]
[1727799917690,0.15966,62633.0,62627.0,0.1]
[1727799917912,0.17620404,62632.0,62627.0,0.1]
[1727799918145,0.159668,62630.0,62624.0,0.1]
[1727799918380,0.319327,62632.0,62628.0,0.1]
[1727799918661,0.02502322,62633.0,62628.0,0.1]
[1727799918883,0.159668,62630.0,62628.0,0.1]
[1727799919126,0.15967,62630.0,62628.0,0.1]
[1727799919386,0.002,62631.0,62623.0,0.1]
[1727799919630,0.159675,62628.0,62623.0,0.1]
[1727799919865,0.159676,62627.0,62623.0,0.1]
[1727799920118,0.23875656,62628.0,62615.0,0.319407]
[1727799920349,0.23875656,62628.0,62612.0,0.319425]
[1727799920350,0.01651467,62627.0,62625.0,0.15968]
[1727799920590,0.01651467,62627.0,62616.0,0.1564578]
[1727799920591,0.31937,62624.0,62616.0,0.1564578]
[1727799920835,0.319387,62620.0,62611.0,0.319431]
[1727799921065,0.01650189,62623.0,62607.0,0.3321182]
[1727799921289,0.01650189,62619.0,62607.0,0.1564578]
[1727799921533,0.33589389,62619.0,62608.0,0.319445]
[1727799921761,0.01650189,62618.0,62607.0,0.1564578]
[1727799922049,0.0756,62615.0,62604.0,0.001642]
[1727799922330,0.23875656,62613.0,62604.0,0.001642]
[1727799922581,0.23875656,62613.0,62606.0,0.159727]
[1727799922582,0.159719,62610.0,62606.0,0.159727]
[1727799922856,0.0756,62615.0,62606.0,0.159727]
[1727799922857,0.159717,62611.0,62606.0,0.159726]
[1727799923096,0.17623946,62610.0,62606.0,0.159726]
[1727799923516,0.319418,62614.0,62604.0,0.001642]
[1727799923517,0.159729,62606.0,62604.0,0.001642]
[1727799923520,0.159726,62608.0,62604.0,0.161376]
[1727799923755,0.319432,62612.0,62608.0,0.004]
[1727799924016,0.163719,62610.0,62606.0,0.159728]
[1727799924265,0.17618873,62609.0,62605.0,0.15973]
[1727799924496,0.004,62610.0,62605.0,0.319462]
[1727799924738,0.004,62610.0,62606.0,0.159729]
[1727799924739,0.0164508,62609.0,62606.0,0.159729]
[1727799924978,0.159721,62609.0,62606.0,0.159729]
[1727799925227,0.01645054,62608.0,62606.0,0.159729]
[1727799925457,0.23875656,62613.0,62604.0,0.001642]
[1727799925458,0.159726,62607.0,62604.0,0.001642]
[1727799925950,0.159722,62609.0,62605.0,0.159729]
[1727799926195,0.159724,62608.0,62604.0,0.161376]
[1727799926434,0.23875656,62613.0,62604.0,0.001642]
[1727799926435,0.159731,62606.0,62604.0,0.001642]
[1727799926683,0.321448,62608.0,62604.0,0.001642]
[1727799926924,0.003,62608.0,62605.0,0.15973]
[1727799927163,0.002,62608.0,62605.0,0.15973]
[1727799927418,0.001,62608.0,62605.0,0.15973]
[1727799927676,0.160724,62608.0,62605.0,0.15973]
[1727799927916,0.001,62608.0,62606.0,0.159728]
[1727799928395,0.160725,62608.0,62605.0,0.159731]
[1727799928874,0.001,62608.0,62605.0,0.159731]
[1727799929345,0.159722,62609.0,62605.0,0.159731]
[1727799929565,0.001,62608.0,62605.0,0.159731]
[1727799930078,0.003,62608.0,62605.0,0.159731]
[1727799930311,0.002,62608.0,62607.0,0.159726]
[1727799930781,0.002,62608.0,62607.0,0.3161838]
[1727799931036,0.002,62609.0,62607.0,0.1564578]
[1727799931278,0.159731,62605.0,62604.0,0.001642]
[1727799931766,0.17623152,62605.0,62604.0,0.001642]
[1727799932505,0.25383152,62605.0,62604.0,0.001642]
[1727799933459,0.237331,62605.0,62604.0,0.003642]
[1727799933703,0.25370181,62605.0,62604.0,0.003642]
[1727799934621,0.25367591,62605.0,62604.0,0.004642]
[1727799935785,0.27871321,62605.0,62604.0,0.004642]
[1727799936017,0.27871321,62605.0,62604.0,0.002642]
[1727799936267,0.29271321,62605.0,62604.0,0.002642]
[1727799936491,0.29671321,62605.0,62604.0,0.002642]
[1727799936718,0.28271321,62605.0,62604.0,0.001642]
[1727799936963,0.2927244,62605.0,62604.0,0.002642]
[1727799937201,0.2927244,62605.0,62604.0,0.001642]
[1727799937699,0.2887244,62605.0,62604.0,0.002642]
[1727799938148,0.0623934,62605.0,62604.0,0.002642]
[1727799938372,0.0373561,62605.0,62604.0,0.002642]
[1727799938899,0.1970871,62605.0,62604.0,0.002642]
[1727799939387,0.1870871,62605.0,62604.0,0.001642]
[1727799939620,0.1790871,62605.0,62604.0,0.001642]
[1727799939870,0.1850871,62605.0,62604.0,0.001642]
[1727799940358,0.27448591,62605.0,62604.0,0.002642]
[1727799940571,0.1920871,62605.0,62604.0,0.002642]
[1727799940805,0.1830871,62605.0,62604.0,0.002642]
[1727799941267,0.20812316,62605.0,62604.0,0.002642]
[1727799941726,0.21612316,62605.0,62604.0,0.002642]
[1727799944394,0.05639216,62605.0,62604.0,0.002642]
[1727799944649,0.1910871,62605.0,62604.0,0.002642]
[1727799947246,0.54730972,62605.0,62604.0,0.002642]
[1727799947502,0.62760972,62605.0,62604.0,0.002642]
[1727799948259,0.63260972,62605.0,62604.0,0.002642]
[1727799949001,0.63460972,62605.0,62604.0,0.002642]
[1727799949467,0.63260972,62605.0,62604.0,0.002642]
[1727799949701,0.81526985,62605.0,62604.0,0.002642]
[1727799950918,0.70900503,62605.0,62604.0,0.002642]
[1727799952375,0.69264893,62605.0,62604.0,0.002642]
[1727799952607,0.70918615,62605.0,62604.0,0.002642]
[1727799954810,0.42802602,62605.0,62604.0,0.002642]
[1727799955355,0.19126822,62605.0,62604.0,0.002642]
[1727799955852,0.015,62605.0,62604.0,0.002642]
[1727799956311,0.174731,62605.0,62604.0,0.002642]
[1727799957010,0.174731,62605.0,62604.0,0.162376]
[1727799957011,0.015,62605.0,62604.0,0.162376]
[1727799957712,0.03140762,62605.0,62604.0,0.162376]
[1727799958192,0.03140762,62605.0,62604.0,0.242476]
[1727799958675,0.015,62605.0,62604.0,0.242476]
[1727799959638,0.008,62605.0,62604.0,0.241476]
[1727799960126,0.23875656,62613.0,62610.0,0.159716]
[1727799960362,0.23875656,62613.0,62611.0,0.159715]
[1727799960892,0.02503215,62616.0,62606.0,0.319453]
[1727799960893,0.02503215,62616.0,62614.0,0.159706]
[1727799961145,0.36680895,62632.0,62606.0,0.319456]
[1727799961146,0.23875656,62620.0,62615.0,0.27386711]
[1727799961397,0.23875656,62620.0,62619.0,0.159695]
[1727799961852,0.23875656,62628.0,62616.0,0.319406]
[1727799962085,0.23875656,62628.0,62617.0,0.159699]
[1727799962319,0.159691,62621.0,62617.0,0.159699]
[1727799962547,0.319392,62619.0,62614.0,0.1]
[1727799962805,0.319392,62619.0,62614.0,0.259706]
[1727799962806,0.159699,62618.0,62614.0,0.259706]
[1727799963058,0.319382,62621.0,62617.0,0.159699]
[1727799963059,0.159692,62621.0,62617.0,0.159699]
[1727799963298,0.159697,62619.0,62615.0,0.159705]
[1727799963536,0.008,62616.0,62615.0,0.159705]
[1727799963779,0.167703,62616.0,62614.0,0.001]
[1727799964010,0.167704,62616.0,62614.0,0.001]
[1727799964240,0.01639974,62615.0,62613.0,0.1]
[1727799964938,0.159703,62617.0,62611.0,0.319432]
[1727799964939,0.01639974,62614.0,62611.0,0.319432]
[1727799965167,0.159701,62617.0,62610.0,0.1]
[1727799965401,0.01642174,62616.0,62612.0,0.319427]
[1727799965682,0.01642174,62615.0,62614.0,0.159708]
[1727799965942,0.02502927,62623.0,62614.0,0.159708]
[1727799965943,0.02502927,62623.0,62622.0,0.159688]
[1727799966204,0.31931,62636.0,62627.0,0.159675]
[1727799966435,0.25517185,62628.0,62627.0,0.159675]
[1727799966690,0.23875656,62628.0,62627.0,0.159675]
[1727799966911,0.18469168,62631.0,62628.0,0.159671]
[1727799966912,0.02502668,62631.0,62628.0,0.159671]
[1727799967146,0.18469368,62631.0,62627.0,0.159673]
[1727799967385,0.02502668,62631.0,62629.0,0.159668]
[1727799967615,0.02502668,62631.0,62628.0,0.319344]
[1727799967843,0.017,62628.0,62627.0,0.480023]
[1727799968086,0.009,62628.0,62627.0,0.479023]
[1727799968372,0.02502668,62631.0,62627.0,0.159675]
[1727799968596,0.02502668,62631.0,62627.0,0.001]
[1727799968597,0.159668,62630.0,62627.0,0.001]
[1727799968823,0.159668,62630.0,62627.0,0.159674]
[1727799969041,0.02902668,62631.0,62627.0,0.159674]
[1727799969295,0.319342,62629.0,62622.0,0.319376]
[1727799969571,0.15968,62625.0,62623.0,0.1]
[1727799969805,0.159693,62620.0,62614.0,0.4758718]
[1727799970042,0.159685,62624.0,62615.0,0.33875656]
[1727799970302,0.159685,62624.0,62619.0,0.319391]
[1727799970575,0.23875656,62625.0,62615.0,0.1]
[1727799970830,0.159708,62615.0,62611.0,0.159715]
[1727799971074,0.159698,62618.0,62615.0,0.159705]
[1727799971311,0.0766,62625.0,62606.0,0.319454]
[1727799971312,0.159707,62615.0,62611.0,0.159714]
[1727799971534,0.159703,62616.0,62615.0,0.001]
[1727799971767,0.319406,62617.0,62611.0,0.159716]
[1727799972000,0.319406,62617.0,62611.0,0.161716]
[1727799972001,0.159708,62614.0,62611.0,0.161716]
[1727799972233,0.159706,62615.0,62611.0,0.159716]
[1727799972454,0.006,62618.0,62605.0,0.25973]
[1727799972690,0.006,62618.0,62605.0,0.1]
[1727799972691,0.159724,62608.0,62605.0,0.1]
[1727799973192,0.159721,62609.0,62605.0,0.25973]
[1727799973449,0.15972,62610.0,62606.0,0.159728]
[1727799973701,0.159714,62612.0,62607.0,0.159724]
[1727799974175,0.319408,62616.0,62605.0,0.1]
[1727799974176,0.02503089,62619.0,62609.0,0.27386711]
[1727799974457,0.02503089,62619.0,62605.0,0.101]
[1727799974458,0.23875656,62610.0,62605.0,0.101]
[1727799974700,0.23875656,62610.0,62604.0,0.27550911]
[1727799974701,0.159706,62615.0,62611.0,0.159715]
[1727799974962,0.23875656,62612.0,62610.0,0.1]
[1727799975187,0.002,62612.0,62611.0,0.259716]
[1727799975423,0.159701,62617.0,62613.0,0.159709]
[1727799976115,0.26378745,62619.0,62613.0,0.159709]
[1727799976116,0.01645217,62616.0,62613.0,0.159709]
[1727799976349,0.01645217,62616.0,62585.0,0.04772739]
[1727799976350,0.159706,62615.0,62602.0,0.397676]
[1727799976575,0.159722,62609.0,62606.0,0.1]
[1727799976806,0.319427,62612.0,62608.0,0.159722]
[1727799976807,0.159714,62612.0,62608.0,0.159722]
[1727799977035,0.159717,62611.0,62607.0,0.159724]
[1727799977270,0.159714,62612.0,62608.0,0.159722]
[1727799977505,0.160714,62612.0,62608.0,0.159722]
[1727799977725,0.001,62609.0,62607.0,0.479176]
[1727799977953,0.001,62609.0,62607.0,0.319452]
[1727799978149,0.319418,62614.0,62608.0,0.159723]
[1727799978434,0.23875656,62610.0,62607.0,0.003]
[1727799978676,0.479165,62609.0,62607.0,0.003]
[1727799978914,0.02503237,62613.0,62607.0,0.003]
[1727799979194,0.02503237,62613.0,62604.0,0.321105]
[1727799979195,0.01648839,62612.0,62604.0,0.321105]
[1727799979471,0.159731,62605.0,62604.0,0.001642]
[1727799979975,0.17622412,62605.0,62604.0,0.001642]
[1727799980440,0.27287875,62605.0,62604.0,0.001642]
[1727799981398,0.27487875,62605.0,62604.0,0.001642]
[1727799981631,0.27287875,62605.0,62604.0,0.001642]
[1727799981869,0.28387875,62605.0,62604.0,0.002642]
[1727799982102,0.57684028,62605.0,62604.0,0.002642]
[1727799982565,0.44033655,62605.0,62604.0,0.002642]
[1727799983312,0.20377875,62605.0,62604.0,0.002642]
[1727799983544,0.20376783,62605.0,62604.0,0.002642]
[1727799983797,0.01649312,62605.0,62604.0,0.161376]
[1727799984071,0.39848156,62608.0,62604.0,0.161375]
[1727799984329,0.021,62605.0,62604.0,0.162375]
[1727799984576,0.011,62605.0,62604.0,0.161375]
[1727799984822,0.011,62605.0,62604.0,0.162375]
[1727799984823,0.01,62605.0,62604.0,0.162375]
[1727799985068,0.01654508,62605.0,62604.0,0.161375]
[1727799985312,0.01954508,62605.0,62604.0,0.161376]
[1727799985779,0.01954508,62605.0,62604.0,0.001642]
[1727799986004,0.01954508,62605.0,62604.0,0.161376]
[1727799986248,0.01954508,62605.0,62604.0,0.001642]
[1727799987139,0.003,62605.0,62604.0,0.001642]
[1727799987380,0.01957471,62605.0,62604.0,0.001642]
[1727799988089,0.47906126,62605.0,62604.0,0.001642]
[1727799988547,0.45327113,62605.0,62604.0,0.001642]
[1727799989222,0.45527113,62605.0,62604.0,0.001642]
[1727799989929,0.18130571,62605.0,62604.0,0.001642]
[1727799990875,0.164731,62605.0,62604.0,0.001642]
[1727799991103,0.18121965,62605.0,62604.0,0.001642]
[1727799996477,0.45518507,62605.0,62604.0,0.001642]
[1727799996708,0.55582219,62605.0,62604.0,0.001642]
[1727799997655,0.55587321,62605.0,62604.0,0.001642]
[1727799998190,0.71233101,62605.0,62604.0,0.001642]
[1727799998432,0.80323101,62605.0,62604.0,0.001642]
[1727799998700,0.52926559,62605.0,62604.0,0.001642]
[1727799998914,0.43836559,62605.0,62604.0,0.001642]
[1727799999161,0.43536559,62605.0,62604.0,0.001642]
[1727799999874,0.42432847,62605.0,62604.0,0.001642]
[1727800000642,0.69829389,62605.0,62604.0,0.001642]
[1727800001371,0.68429389,62605.0,62604.0,0.001642]
[1727800001600,0.69729389,62605.0,62604.0,0.001642]
[1727800001836,0.42332847,62605.0,62604.0,0.001642]
[1727800002072,0.34772847,62605.0,62604.0,0.001642]
[1727800002320,0.19127067,62605.0,62604.0,0.001642]
[1727800002573,0.17827067,62605.0,62604.0,0.001642]
[1727800002808,0.01853967,62605.0,62604.0,0.001642]
[1727800003051,0.03253967,62605.0,62604.0,0.161376]
[1727800003296,0.03253967,62605.0,62604.0,0.001642]
[1727800003542,0.03253967,62605.0,62604.0,0.161376]
[1727800003777,0.03253967,62605.0,62604.0,0.001642]
[1727800003778,0.03053967,62605.0,62604.0,0.001642]